bitfinex-derivatives/quotes_SOLF0:USTF0_20250712
["timestamp","ask_amount","ask_price","bid_price","bid_amount"]
[1752350412673,9.568,160.77,160.76,3.59]
[1752350415570,3.35,160.77,160.76,3.59]
[1752350416668,9.5679,160.77,160.76,3.59]
[1752350416973,11.50783822,160.77,160.76,3.59]
[1752350417173,9.5679,160.77,160.76,3.59]
[1752350418176,3.35,160.76,160.74,3.59]
[1752350418375,3.35,160.76,160.74,5.52993822]
[1752350418779,9.5682,160.77,160.75,3.59]
[1752350419078,3.35,160.76,160.75,3.59]
[1752350419473,3.35,160.76,160.74,1.93993822]
[1752350419678,3.35,160.75,160.73,3.59]
[1752350419877,3.35,160.75,160.72,1.93993822]
[1752350420078,3.35,160.75,160.74,3.59]
[1752350420581,1.93993822,160.75,160.72,3.59]
[1752350420781,3.35,160.73,160.72,3.59]
[1752350421784,6.2202,160.72,160.71,3.59]
[1752350421975,9.5702,160.72,160.71,3.59]
[1752350422181,3.35,160.72,160.71,3.59]
[1752350423081,9.5699,160.72,160.71,3.59]
[1752350423386,3.35,160.72,160.71,3.59]
[1752350423579,5.28993822,160.74,160.71,9.8102]
[1752350423782,3.35,160.73,160.72,3.59]
[1752350424785,3.35,160.73,160.72,9.8098]
[1752350424983,5.22882374,160.81,160.73,3.59]
[1752350425179,3.35,160.76,160.73,3.59]
[1752350425381,9.569,160.74,160.73,3.59]
[1752350426288,3.35,160.74,160.73,3.59]
[1752350427193,3.35,160.74,160.73,9.8094]
[1752350427686,1.94175927,160.76,160.74,9.8091]
[1752350427890,3.35,160.76,160.75,3.59]
[1752350428494,3.35,160.76,160.75,9.8087]
[1752350428689,3.35,160.77,160.76,3.59]
[1752350430391,9.5679,160.77,160.76,3.59]
[1752350431091,3.35,160.77,160.76,3.59]
[1752350432897,3.35,160.78,160.76,6.2182]
[1752350433092,3.35,160.78,160.77,3.59]
[1752350435396,9.5675,160.78,160.77,3.59]
[1752350437696,3.35,160.78,160.77,9.8079]
[1752350437996,3.35,160.78,160.77,9.5779]
[1752350438202,3.35,160.78,160.77,3.36]
[1752350438498,1.94175927,160.82,160.78,3.36]
[1752350438702,3.5,160.8,160.78,3.36]
[1752350438905,9.7173,160.79,160.76,9.5783]
[1752350439104,3.5,160.78,160.77,3.36]
[1752350439698,9.7175,160.78,160.77,3.36]
[1752350440004,11.65823251,160.78,160.77,3.36]
[1752350440501,3.5,160.76,160.75,3.36]
[1752350440701,3.5,160.78,160.75,3.36]
[1752350441102,1.94123591,160.79,160.75,3.36]
[1752350441292,3.5,160.77,160.75,6.2187]
[1752350441499,3.5,160.77,160.76,3.36]
[1752350441901,3.5,160.82,160.75,3.36]
[1752350442104,3.5,160.79,160.75,3.36]
[1752350442506,3.5,160.79,160.77,6.2177]
[1752350442704,3.5,160.79,160.78,3.36]
[1752350443208,3.5,160.79,160.78,9.79584804]
[1752350444106,6.2165,160.81,160.78,16.01334804]
[1752350444405,5.44123591,160.8,160.79,9.79584804]
[1752350445206,3.5,160.8,160.79,16.01294804]
[1752350445404,5.44123591,160.82,160.81,3.36]
[1752350445602,5.44123591,160.82,160.81,9.79584804]
[1752350446105,11.65733591,160.82,160.81,9.79584804]
[1752350448203,8.15733591,160.82,160.81,9.79584804]
[1752350448410,182.14,160.83,160.82,3.36]
[1752350448705,184.08123591,160.83,160.82,6.43584804]
[1752350449102,184.08123591,160.83,160.82,9.79584804]
[1752350449405,184.08018925,160.83,160.82,9.79584804]
[1752350450207,182.14,160.83,160.82,9.79584804]
[1752350450415,184.08018925,160.83,160.82,9.79584804]
[1752350450910,190.29578925,160.83,160.82,9.79584804]
[1752350451807,190.29578925,160.83,160.82,6.43584804]
[1752350453312,9.716,160.82,160.81,3.36]
[1752350453508,11.65618925,160.82,160.81,9.79144232]
[1752350453703,9.7157,160.83,160.82,3.36]
[1752350453914,188.7557,160.83,160.82,9.79144232]
[1752350454313,190.69588925,160.83,160.82,9.79144232]
[1752350454515,184.48018925,160.83,160.82,9.79144232]
[1752350456216,184.48018925,160.83,160.82,9.79029717]
[1752350457814,190.69578925,160.83,160.82,9.79029717]
[1752350458119,190.69578925,160.83,160.82,6.43029717]
[1752350459120,6.2161,160.82,160.8,3.36]
[1752350459317,182.56,160.81,160.77,1.94018925]
[1752350459519,182.56,160.81,160.78,8.36553133]
[1752350459820,182.56,160.81,160.8,3.36]
[1752350460025,182.56,160.81,160.8,9.78534208]
[1752350460221,182.56,160.81,160.8,16.00204208]
[1752350460422,179.06,160.81,160.8,16.00204208]
[1752350462721,182.56,160.81,160.8,16.00204208]
[1752350463927,182.56,160.81,160.8,6.42534208]
[1752350464126,182.56,160.81,160.8,9.78534208]
[1752350465126,182.56,160.81,160.8,6.42534208]
[1752350465928,188.7763,160.81,160.8,6.42534208]
[1752350466826,182.56,160.81,160.8,6.42534208]
[1752350467027,182.56,160.81,160.8,9.84534208]
[1752350468321,182.56,160.81,160.8,16.06204208]
[1752350469529,182.56,160.81,160.8,9.84534208]
[1752350470031,182.56,160.81,160.8,9.89140996]
[1752350470833,182.56,160.81,160.8,3.42]
[1752350471129,182.56,160.81,160.8,16.1086511]
[1752350471624,188.7763,160.81,160.8,6.4719511]
[1752350472832,190.71648925,160.81,160.8,6.4719511]
[1752350473033,190.71648925,160.81,160.78,3.42]
[1752350473233,9.5867,160.8,160.79,6.47615841]
[1752350473438,11.52688925,160.8,160.79,6.47615841]
[1752350480244,5.31018925,160.8,160.79,6.47615841]
[1752350481234,3.37,160.8,160.79,16.11325841]
[1752350481432,5.31018925,160.8,160.79,16.11325841]
[1752350484145,184.37018925,160.81,160.8,9.6367]
[1752350484445,184.37018925,160.81,160.8,16.11285841]
[1752350487540,184.37018925,160.81,160.8,6.47615841]
[1752350488446,184.37018925,160.81,160.8,12.69285841]
[1752350488744,182.43,160.81,160.8,16.11285841]
[1752350488945,184.37018925,160.81,160.8,16.11285841]
[1752350489445,184.37018925,160.81,160.8,12.69285841]
[1752350493544,184.37018925,160.81,160.8,6.47615841]
[1752350494749,190.58648925,160.81,160.8,6.47615841]
[1752350502645,184.37018925,160.81,160.8,6.47615841]
[1752350502846,3.5,160.8,160.79,3.35]
[1752350503050,5.44018925,160.8,160.79,9.85027901]
[1752350504152,5.44018925,160.8,160.79,16.06737901]
[1752350505155,5.44128039,160.8,160.79,16.06737901]
[1752350507059,3.5,160.8,160.79,16.06737901]
[1752350507359,5.44128039,160.8,160.79,16.06737901]
[1752350511567,5.44128039,160.8,160.79,9.85027901]
[1752350512267,5.44128039,160.8,160.79,16.06737901]
[1752350512467,184.64128039,160.8,160.79,16.06737901]
[1752350517774,181.14128039,160.8,160.79,16.06737901]
[1752350520073,184.64128039,160.8,160.79,16.07346004]
[1752350520675,184.64128039,160.8,160.79,9.85636004]
[1752350522977,181.14128039,160.8,160.78,3.35]
[1752350523176,3.5,160.79,160.78,3.35]
[1752350526081,184.73128039,160.8,160.78,6.2175]
[1752350526278,184.73128039,160.8,160.79,3.43]
[1752350528579,3.59,160.79,160.77,6.2177]
[1752350528782,3.59,160.79,160.78,3.43]
[1752350529879,5.53128039,160.79,160.78,3.43]
[1752350533784,11.74838039,160.79,160.78,3.43]
[1752350537884,6.2181,160.77,160.75,3.43]
[1752350538079,3.59,160.76,160.75,3.43]
[1752350541793,9.8083,160.76,160.75,3.43]
[1752350543991,3.59,160.76,160.75,3.43]
[1752350544497,180.92128039,160.77,160.75,3.43]
[1752350544795,184.51128039,160.77,160.75,3.43]
[1752350544998,184.51128039,160.77,160.75,9.6487]
[1752350545194,184.51128039,160.77,160.76,3.43]
[1752350545498,178.98,160.77,160.76,9.6483]
[1752350549100,184.51128039,160.77,160.76,9.6483]
[1752350551299,190.72918039,160.77,160.76,3.43]
[1752350551499,184.51128039,160.77,160.76,3.43]
[1752350551894,184.51177454,160.77,160.76,3.43]
[1752350552097,184.51177454,160.77,160.76,9.6483]
[1752350556909,184.51177454,160.77,160.76,3.43]
[1752350557606,184.51177454,160.77,160.76,9.6483]
[1752350557912,184.51177454,160.77,160.76,3.43]
[1752350559114,184.51177454,160.77,160.76,9.6483]
[1752350559410,184.51177454,160.77,160.76,3.43]
[1752350561212,190.72967454,160.77,160.76,3.43]
[1752350565614,6.2183,160.76,160.75,3.51006549]
[1752350565816,9.8483,160.76,160.75,0.04006549]
[1752350566010,9.8483,160.76,160.75,3.51006549]
[1752350566710,11.79007454,160.76,160.75,3.51006549]
[1752350574224,8.16007454,160.76,160.75,0.04006549]
[1752350576225,11.79007454,160.76,160.75,0.04006549]
[1752350580227,11.79007454,160.76,160.75,3.51006549]
[1752350581330,11.79007454,160.76,160.75,0.04006549]
[1752350583230,11.79007454,160.76,160.75,3.51006549]
[1752350588834,11.79007454,160.76,160.75,0.04006549]
[1752350590031,11.79007454,160.76,160.75,3.56006549]
[1752350592138,9.8483,160.76,160.75,3.56006549]
[1752350592337,11.79007454,160.76,160.75,3.56006549]
[1752350593437,9.8483,160.76,160.75,3.56006549]
[1752350593731,11.79007454,160.76,160.75,3.56006549]
[1752350595740,11.79047779,160.76,160.75,3.56006549]
[1752350610254,6.2187,160.75,160.74,3.52]
[1752350610551,11.46087779,160.75,160.74,3.52]
[1752350618452,5.24217779,160.75,160.74,3.52]
[1752350625256,1.94217779,160.75,160.71,5.22836722]
[1752350625458,5.44217779,160.72,160.71,3.56]
[1752350634868,11.66267373,160.72,160.71,3.56]
[1752350637371,11.66282884,160.72,160.71,3.56]
[1752350638372,9.7202,160.71,160.7,4.71649]
[1752350639772,3.5,160.71,160.7,4.71649]
[1752350645080,5.48846231,160.73,160.71,3.56]
[1752350645275,0.04543347,160.73,160.71,3.56]
[1752350645873,0.04543347,160.73,160.72,6.2198]
[1752350646273,0.04543347,160.73,160.72,9.7498]
[1752350656187,0.04543347,160.73,160.72,6.2198]
[1752350656886,1.9420412,160.75,160.73,6.2191]
[1752350658290,9.5984,160.76,160.74,3.53]
[1752350658481,9.5984,160.76,160.75,3.53]
[1752350658683,11.5404412,160.76,160.75,3.53]
[1752350662689,6.2187,160.75,160.74,0.03969264]
[1752350662891,11.5407412,160.75,160.74,3.56969264]
[1752350680204,8.1607412,160.75,160.74,0.03969264]
[1752350682312,11.5107412,160.75,160.74,3.38969264]
[1752350682708,11.51081263,160.75,160.74,3.38969264]
[1752350691315,5.29211263,160.75,160.74,3.38969264]
[1752350695117,11.51081263,160.75,160.74,3.38969264]
[1752350700212,11.51081263,160.75,160.74,0.03969264]
[1752350700417,3.35,160.72,160.7,9.73317912]
[1752350700619,5.29211263,160.71,160.7,1.15649]
[1752350701009,5.29211263,160.71,160.68,5.22668912]
[1752350701010,3.35,160.7,160.68,3.35]
[1752350701212,1.94211263,160.69,160.67,8.57668912]
[1752350701517,1.94211263,160.69,160.64,3.35]
[1752350701518,3.35,160.68,160.64,3.35]
[1752350701822,5.29211263,160.65,160.64,3.35]
[1752350705520,5.29211263,160.65,160.64,9.573]
[1752350705719,178.58,160.66,160.64,3.35]
[1752350705917,1.94211263,160.65,160.64,3.35]
[1752350706317,1.94211263,160.65,160.64,9.573]
[1752350707027,5.44211263,160.65,160.64,9.573]
[1752350707715,3.5,160.65,160.64,9.573]
[1752350707920,180.52211263,160.66,160.65,9.7526]
[1752350710822,184.02211263,160.66,160.65,9.7526]
[1752350715923,184.02211263,160.66,160.65,6.2226]
[1752350716117,3.5,160.65,160.64,3.53]
[1752350716322,5.44435656,160.65,160.64,3.53]
[1752350716621,5.44435656,160.65,160.64,9.7529]
[1752350724333,5.44435656,160.65,160.64,6.2229]
[1752350724535,3.5,160.64,160.63,9.7532]
[1752350726934,3.5,160.63,160.62,9.7536]
[1752350728033,5.44435656,160.63,160.62,9.7536]
[1752350730241,1.94435656,160.63,160.62,9.7536]
[1752350730442,5.44435656,160.63,160.62,9.7536]
[1752350731839,1.94435656,160.63,160.62,9.7536]
[1752350732942,5.48480718,160.64,160.63,6.2233]
[1752350733144,5.48480718,160.64,160.63,9.7533]
[1752350742646,5.48510077,160.64,160.63,9.7533]
[1752350747152,1.98510077,160.64,160.63,9.7533]
[1752350749156,0.04045062,160.64,160.63,9.7533]
[1752350752056,3.48045062,160.64,160.63,9.7533]
[1752350757256,3.48045062,160.64,160.63,3.53]
[1752350758160,9.70335062,160.64,160.63,3.53]
[1752350762764,6.2237,160.62,160.61,5.2460623]
[1752350762958,3.44,160.62,160.6,5.2460623]
[1752350763257,3.44,160.6,160.58,5.2460623]
[1752350763463,5.38465015,160.6,160.58,8.6860623]
[1752350763659,8.16915015,160.6,160.59,3.44]
[1752350763962,11.60915015,160.6,160.59,3.44]
[1752350765156,9.6645,160.6,160.59,3.44]
[1752350767765,11.60915015,160.6,160.59,3.44]
[1752350783168,8.16915015,160.6,160.59,3.44]
[1752350783363,0.04040569,160.61,160.6,9.6445]
[1752350783564,5.2949805,160.61,160.6,3.42]
[1752350783873,3.31,160.59,160.57,6.2253]
[1752350784170,3.31,160.59,160.57,11.4598102]
[1752350784365,3.31,160.59,160.58,3.42]
[1752350785469,9.5349,160.59,160.58,3.42]
[1752350785670,11.47947481,160.59,160.58,3.42]
[1752350787174,5.25457481,160.59,160.58,9.6453]
[1752350788475,3.31,160.59,160.58,9.6453]
[1752350790977,3.31,160.6,160.59,9.6448]
[1752350791177,3.31,160.6,160.59,3.42]
[1752350792072,9.5345,160.6,160.59,3.42]
[1752350792674,6.2255,160.58,160.57,3.42]
[1752350793175,6.2257,160.57,160.56,3.42]
[1752350793380,5.25457481,160.57,160.56,3.42]
[1752350794578,5.25457481,160.57,160.56,9.646]
[1752350801280,3.31,160.57,160.56,9.646]
[1752350803883,3.44,160.6,160.57,3.57]
[1752350804084,3.44,160.6,160.57,5.51457481]
[1752350804285,3.44,160.6,160.58,3.57]
[1752350804783,3.44,160.6,160.57,1.94457481]
[1752350804784,3.44,160.59,160.57,3.57]
[1752350805375,3.44,160.59,160.58,9.7953]
[1752350808788,0.03937909,160.6,160.59,9.7949]
[1752350809087,3.47937909,160.6,160.59,9.7949]
[1752350812494,0.03937909,160.6,160.59,9.7949]
[1752350816595,3.47937909,160.6,160.59,3.57]
[1752350818194,3.44,160.59,160.58,3.57]
[1752350818591,9.6649,160.59,160.58,3.57]
[1752350821799,3.44,160.59,160.58,3.57]
[1752350822500,9.6649,160.59,160.58,3.57]
[1752350824604,9.6657,160.57,160.56,3.57]
[1752350827305,6.2257,160.57,160.54,11.4612102]
[1752350827507,3.43,160.56,160.55,3.36]
[1752350827806,3.43,160.56,160.55,9.5864]
[1752350830208,3.43,160.56,160.55,3.36]
[1752350831407,3.43,160.56,160.55,9.5864]
[1752350838414,5.37457481,160.57,160.55,9.5864]
[1752350838613,5.37457481,160.57,160.56,3.36]
[1752350839216,5.37457481,160.57,160.56,9.586]
[1752350839714,3.43,160.57,160.56,9.586]
[1752350840214,1.94457481,160.58,160.56,9.586]
[1752350840410,5.37457481,160.58,160.57,3.36]
[1752350841318,11.59987481,160.58,160.57,3.36]
[1752350845624,1.94457481,160.58,160.55,3.36]
[1752350845819,3.43,160.57,160.55,3.36]
[1752350846227,9.656,160.56,160.55,3.36]
[1752350847224,11.60057481,160.56,160.55,3.36]
[1752350847729,9.6565,160.55,160.54,3.36]
[1752350848426,11.60308788,160.55,160.54,3.36]
[1752350849424,5.37658788,160.55,160.54,3.36]
[1752350853231,5.37658788,160.55,160.54,9.5868]
[1752350853631,3.43,160.55,160.54,9.5868]
[1752350855526,0.03933177,160.56,160.55,9.5864]
[1752350856034,0.03933177,160.56,160.55,11.53298788]
[1752350856628,0.03933177,160.56,160.55,16.76749808]
[1752350857134,3.57,160.63,160.56,3.51]
[1752350857336,3.57,160.62,160.6,3.51]
[1752350857529,3.57,160.62,160.61,6.2241]
[1752350857734,3.57,160.62,160.61,9.7341]
[1752350858037,3.57,160.63,160.62,6.2235]
[1752350858235,3.57,160.63,160.62,9.7335]
[1752350858834,3.57,160.66,160.63,3.51]
[1752350859040,3.57,160.66,160.63,5.45658788]
[1752350859335,3.57,160.66,160.64,3.51]
[1752350859540,539.78658788,160.67,160.65,6.2222]
[1752350859728,539.78658788,160.67,160.65,3.51]
[1752350860035,3.57,160.66,160.65,9.7326]
[1752350863137,3.57,160.66,160.65,3.51]
[1752350863937,3.57,160.65,160.63,3.55390994]
[1752350864137,1.94658788,160.65,160.63,3.55390994]
[1752350864328,3.57,160.64,160.63,3.55390994]
[1752350871744,3.57,160.64,160.63,9.77720994]
[1752350872539,3.57,160.64,160.63,3.55390994]
[1752350879160,3.57,160.64,160.63,9.77720994]
[1752350881352,3.57,160.64,160.63,3.55390994]
[1752350881555,11.73948788,160.64,160.63,0.04390994]
[1752350887348,190.27948788,160.64,160.63,0.04390994]
[1752350887555,190.25948788,160.64,160.63,0.04390994]
[1752350887957,11.73948788,160.64,160.63,0.04390994]
[1752350888155,190.25948788,160.64,160.63,0.04390994]
[1752350894759,190.25948788,160.64,160.63,3.41390994]
[1752350899466,190.25948788,160.64,160.63,0.04390994]
[1752350902369,190.25809496,160.64,160.63,0.04390994]
[1752350906062,11.73809496,160.64,160.63,0.04390994]
[1752350906267,190.27809496,160.64,160.63,3.41390994]
[1752350908179,190.27809496,160.64,160.63,0.04390994]
[1752350912480,188.3329,160.64,160.63,0.04390994]
[1752350912678,190.27809496,160.64,160.63,0.04390994]
[1752350912983,190.27809496,160.64,160.63,6.48867382]
[1752350913382,190.27809496,160.64,160.63,9.85867382]
[1752350917586,190.27809496,160.64,160.63,9.86067124]
[1752350922691,190.27803994,160.64,160.63,9.86067124]
[1752350923586,190.27803994,160.64,160.63,3.41390994]
[1752350923793,190.27803994,160.64,160.63,9.86254668]
[1752350928491,6.2229,160.64,160.63,9.86254668]
[1752350928688,186.68803994,160.64,160.63,9.86254668]
[1752350928889,180.46513994,160.64,160.63,9.86254668]
[1752350931395,186.68813994,160.64,160.63,9.86254668]
[1752350934290,190.19813994,160.64,160.63,9.86254668]
[1752350940901,190.19813994,160.64,160.63,9.87177528]
[1752350944102,190.19813994,160.64,160.63,6.50177528]
[1752350945003,190.19813994,160.64,160.63,9.83177528]
[1752350952207,6.223,160.64,160.63,9.83177528]
[1752350952412,186.64813994,160.64,160.63,9.83177528]
[1752350952613,190.17813994,160.64,160.63,9.83177528]
[1752350952913,190.17794137,160.64,160.63,9.83177528]
[1752350965824,190.17794137,160.64,160.63,3.37390994]
[1752350966120,190.17794137,160.64,160.63,9.81330508]
[1752350967220,190.17794137,160.64,160.63,3.37390994]
[1752350967427,190.17794137,160.64,160.63,9.81496643]
[1752350970128,190.17794137,160.64,160.63,3.37390994]
[1752350970326,190.17794137,160.64,160.63,9.8147591]
[1752350976041,178.48,160.64,160.63,9.8147591]
[1752350976236,180.42494137,160.64,160.63,9.8147591]
[1752350977340,183.74494137,160.64,160.63,9.8147591]
[1752350977637,183.74492748,160.64,160.63,9.8147591]
[1752350977836,189.96792748,160.64,160.63,9.8147591]
[1752350982447,189.96809386,160.64,160.63,9.8147591]
[1752350982948,183.74509386,160.64,160.63,9.8147591]
[1752350985150,189.96809386,160.64,160.63,9.8147591]
[1752350988548,6.2238,160.62,160.61,3.47]
[1752350988851,8.16889386,160.62,160.61,3.47]
[1752350989052,11.48889386,160.62,160.61,3.47]
[1752350989749,11.48933245,160.62,160.61,3.47]
[1752350998265,3.32,160.61,160.58,5.23335202]
[1752350998557,1.94613386,160.59,160.57,5.23335202]
[1752350998751,178.42,160.6,160.57,5.23335202]
[1752350998752,5.26613386,160.58,160.57,5.23335202]
[1752350998950,5.26613386,160.58,160.56,11.45915202]
[1752350999154,5.26613386,160.58,160.56,6.2258]
[1752350999557,3.32,160.57,160.55,11.45965202]
[1752351000361,1.94613386,160.56,160.55,5.23335202]
[1752351000557,5.26613386,160.56,160.55,8.70335202]
[1752351000754,5.26613386,160.56,160.55,3.47]
[1752351000957,3.32,160.55,160.54,3.47]
[1752351001256,5.26691013,160.55,160.54,3.47]
[1752351002170,11.49331013,160.55,160.54,3.47]
[1752351007767,5.26691013,160.55,160.54,3.47]
[1752351008668,5.26691013,160.55,160.54,9.6968]
[1752351008970,1.94691013,160.55,160.54,9.6968]
[1752351010670,5.59691013,160.55,160.54,9.6968]
[1752351011970,5.59691013,160.55,160.54,3.47]
[1752351012175,11.82331013,160.55,160.54,3.47]
[1752351013772,5.59691013,160.55,160.54,9.6968]
[1752351014272,5.59691013,160.55,160.54,3.47]
[1752351015372,11.82331013,160.55,160.54,3.47]
[1752351022780,5.59691013,160.55,160.54,3.47]
[1752351025881,5.59691013,160.55,160.54,9.6968]
[1752351031084,5.59691013,160.55,160.54,3.47]
[1752351035993,3.31,160.54,160.53,9.797]
[1752351036196,5.25691013,160.54,160.53,9.797]
[1752351038697,5.25691013,160.55,160.54,6.2268]
[1752351038887,5.25691013,160.55,160.54,9.7968]
[1752351040499,1.94691013,160.55,160.54,9.7968]
[1752351040901,3.35021042,160.56,160.55,6.2264]
[1752351041096,5.29712055,160.56,160.55,9.7964]
[1752351047111,5.29712055,160.56,160.55,3.57]
[1752351048215,5.29712055,160.56,160.55,9.7964]
[1752351050218,11.52322055,160.56,160.55,3.57]
[1752351050424,3.31,160.55,160.54,6.2267]
[1752351050620,5.25691013,160.55,160.54,6.2267]
[1752351052925,9.5368,160.54,160.53,5.21100001]
[1752351053117,9.5368,160.54,160.52,3.57]
[1752351053118,8.17371013,160.54,160.52,8.78100001]
[1752351053318,5.25691013,160.53,160.52,8.78100001]
[1752351053927,5.25691013,160.53,160.52,15.00860001]
[1752351054922,5.25691013,160.53,160.52,8.78100001]
[1752351056822,5.25691013,160.53,160.52,15.00860001]
[1752351057022,3.31,160.53,160.52,15.00860001]
[1752351057223,5.25691013,160.54,160.53,3.57]
[1752351059929,5.25691013,160.54,160.53,9.7972]
[1752351060432,3.31,160.54,160.53,9.7972]
[1752351060626,3.35021042,160.56,160.55,9.7964]
[1752351063628,0.04021042,160.56,160.55,9.7964]
[1752351064129,3.35021042,160.56,160.55,9.7964]
[1752351065127,3.35021042,160.56,160.55,6.2264]
[1752351065331,3.35021042,160.56,160.55,9.7964]
[1752351075731,3.35021042,160.56,160.54,9.8167]
[1752351084749,3.35021042,160.56,160.54,6.2267]
[1752351085048,3.35021042,160.56,160.55,3.59]
[1752351085348,3.35021042,160.56,160.55,9.8164]
[1752351091951,0.04021042,160.56,160.55,9.8164]
[1752351092154,3.46021042,160.56,160.55,9.8164]
[1752351092356,3.46021042,160.56,160.54,6.2266]
[1752351092551,3.46021042,160.56,160.54,9.8166]
[1752351093054,3.42,160.55,160.54,9.8166]
[1752351094456,3.42,160.55,160.53,5.23704211]
[1752351094651,3.42,160.53,160.52,3.59]
[1752351096149,3.42,160.53,160.52,9.8174]
[1752351107363,3.33,160.54,160.53,9.887]
[1752351112358,3.33,160.54,160.53,6.227]
[1752351112764,3.33,160.54,160.53,9.887]
[1752351117666,3.33,160.54,160.53,6.227]
[1752351117873,3.33,160.54,160.53,9.887]
[1752351123875,9.5568,160.54,160.53,3.66]
[1752351124072,3.33,160.54,160.53,3.66]
[1752351124275,3.33,160.54,160.52,9.8874]
[1752351125170,3.33,160.53,160.51,5.23615515]
[1752351125370,3.33,160.53,160.5,7.18318358]
[1752351125573,3.33,160.53,160.51,3.66]
[1752351125969,3.33,160.53,160.51,9.8877]
[1752351126165,3.33,160.53,160.51,6.2277]
[1752351126373,3.33,160.53,160.52,3.49]
[1752351130274,3.33,160.53,160.52,9.7176]
[1752351135776,3.33,160.53,160.52,3.49]
[1752351137884,3.33,160.53,160.52,9.7176]
[1752351149699,3.33,160.53,160.52,16.16572731]
[1752351160207,6.2265,160.55,160.52,12.67572731]
[1752351160407,6.2265,160.55,160.53,6.44812731]
[1752351160607,6.2265,160.55,160.54,6.44812731]
[1752351162812,9.8765,160.55,160.54,6.44812731]
[1752351166715,11.82402103,160.55,160.54,6.44812731]
[1752351167809,3.65,160.55,160.54,3.65]
[1752351168609,3.65,160.55,160.54,9.8768]
[1752351169215,3.65,160.55,160.54,3.65]
[1752351170012,9.8764,160.55,160.53,9.877]
[1752351170207,3.65,160.54,160.53,9.877]
[1752351174114,3.65,160.54,160.53,3.65]
[1752351175909,3.65,160.54,160.53,9.8772]
[1752351176815,3.65,160.54,160.53,3.65]
[1752351180720,3.65,160.54,160.53,9.8772]
[1752351182215,3.65,160.54,160.52,5.23648393]
[1752351182517,3.65,160.53,160.47,5.23648393]
[1752351182713,6.2277,160.52,160.48,15.11548393]
[1752351183011,3.65,160.49,160.48,5.23648393]
[1752351183418,3.65,160.49,160.47,13.41391955]
[1752351183613,3.65,160.49,160.48,3.65]
[1752351185111,3.65,160.49,160.46,11.46618393]
[1752351185318,1.94803562,160.48,160.47,3.65]
[1752351185515,3.65,160.48,160.47,3.65]
[1752351186208,8.17723562,160.48,160.46,3.34]
[1752351186409,8.17723562,160.48,160.45,5.23648393]
[1752351186410,3.32,160.47,160.45,3.34]
[1752351186609,5.26803562,160.47,160.45,3.34]
[1752351186813,3.32,160.46,160.45,3.34]
[1752351187515,3.32,160.48,160.45,5.28803562]
[1752351187717,3.32,160.49,160.48,3.34]
[1752351188318,3.36194907,160.5,160.48,5.28803562]
[1752351188613,3.36194907,160.5,160.49,5.28803562]
[1752351189219,0.04194907,160.5,160.49,11.51683562]
[1752351190321,3.36194907,160.5,160.49,11.51683562]
[1752351192522,0.04194907,160.5,160.49,11.51683562]
[1752351195226,3.36194907,160.5,160.49,11.51683562]
[1752351195420,0.04194907,160.5,160.49,11.51683562]
[1752351198828,0.04194907,160.5,160.49,16.75331955]
[1752351201928,3.36194907,160.5,160.49,16.75331955]
[1752351203730,3.36194907,160.5,160.49,8.57648393]
[1752351203929,3.36194907,160.5,160.49,5.28803562]
[1752351204334,3.36194907,160.5,160.49,11.51683562]
[1752351216439,3.36194907,160.5,160.49,9.5688]
[1752351216639,3.36194907,160.5,160.49,11.51683562]
[1752351231449,3.36194907,160.5,160.49,16.74185993]
[1752351234652,3.36194907,160.5,160.49,16.75705994]
[1752351235552,3.36194907,160.5,160.49,11.51583865]
[1752351235753,3.36194907,160.5,160.49,16.75656997]
[1752351241258,3.36194907,160.5,160.49,10.52776997]